Cogmind - Beta 9.4 @@@ ROGUE MODE // 2020.02.04 @ 13:52:13 Player: OccultOnion Result: Destroyed by H-55 Commando with Gauss Rifle Performance ------------- Evolutions (2) 1000 Regions Visited (4) 800 Robots Destroyed (27) 135 Value Destroyed (737) 737 Prototype IDs (2) 40 Alien Tech Used (0) 0 Bonus (137) 137 TOTAL SCORE: 2849 Bonus ------- Follower Combat Kills 137 Cogmind --------- Core Integrity 0/550 Matter 300/300 Energy 100/100 System Corruption 0% Temperature Cool (0) Movement Walking (120) Location -8/Materials Parts ------- > --- POWER (1) -------- (None) > --- PROPULSION (4) --- Aluminum Leg Aluminum Leg > --- UTILITY (4) ------ Large Storage Unit Visual Processing Unit > --- WEAPON (2) ------- Spear > --- INVENTORY (10) --- Light Nuclear Core Seismic Analyzer Peak State ------------ > --- POWER ------------ Light Ion Engine > --- PROPULSION ------- Aluminum Leg Aluminum Leg Improved Airjet > --- UTILITY ---------- Large Storage Unit Visual Processing Unit Improved Terrain Scanner Utility Shielding > --- WEAPON ----------- Spear Spear > --- INVENTORY -------- Seismic Analyzer Cooled Pulse Rifle [Rating: 22] Favorites ----------- Power Ion Engine Engine Ion Engine Power Core Light Nuclear Core Propulsion Aluminum Leg Leg Aluminum Leg Wheel Wheel Hover Unit Improved Airjet Utility Improved Terrain Scanner Device Improved Terrain Scanner Storage Small Storage Unit Processor Visual Processing Unit Protection Utility Shielding Weapon Assault Rifle Energy Gun EM Pulse Gun Ballistic Gun Assault Rifle Ballistic Cannon Assault Cannon Launcher Mini Grenade Launcher Piercing Weapon Spear Build | -11 -10 -10 -9 -8 ------- Run | Scr Mat Min Mat Mat Slots Evolved 4 | . . . 2 2 Power . | . . . . . Propulsion 2 | . . . 1 1 Utility 2 | . . . 1 1 Weapon . | . . . . . Parts Attached 37 | 7 4 5 6 15 Power 7 | 1 1 2 1 2 Engine 5 | 1 1 1 1 1 Core 2 | . . 1 . 1 Reactor . | . . . . . Propulsion 12 | 2 . 2 2 6 Treads . | . . . . . Leg 8 | 2 . 2 2 2 Wheel 3 | . . . . 3 Hover 1 | . . . . 1 Flight . | . . . . . Utility 5 | 2 . . 2 1 Device 1 | 1 . . . . Storage 2 | 1 . . 1 . Processor 1 | . . . . 1 Hackware . | . . . . . Protection 1 | . . . 1 . Artifact . | . . . . . Weapon 13 | 2 3 1 1 6 Energy Gun 4 | 1 . . 1 2 Energy Cannon . | . . . . . Ballistic Gun 4 | 1 2 1 . . Ballistic Cannon 1 | . . . . 1 Launcher 1 | . 1 . . . Special Weapon . | . . . . . Impact Weapon . | . . . . . Slashing Weapon . | . . . . . Piercing Weapon 3 | . . . . 3 Special Melee Weapon . | . . . . . Unidentified Prototypes 2 | . . . . 2 Parts Lost 28 | . 4 3 3 18 Power 6 | . 1 1 1 3 Propulsion 10 | . 1 1 1 7 Utility 2 | . . . . 2 Weapon 10 | . 2 1 1 6 Highest Loss Streak 10 | . 2 4 2 10 Average Slot Usage (%) 87 | . 97 90 96 66 Engine 5 | . 14 . 6 2 Core 4 | . . 11 2 2 Leg 24 | . 27 26 32 11 Wheel 1 | . . . . 5 Device 10 | . 14 14 11 2 Storage 12 | . 14 14 11 9 Processor 2 | . . . . 9 Protection 4 | . . . 11 8 Energy Gun 2 | . 7 . . 3 Ballistic Gun 15 | . 15 21 20 2 Piercing Weapon 1 | . . . . 6 Naked Turns . | . . . . . Heaviest Build 28 | 13 13 13 28 28 Greatest Support 30 | 20 20 20 30 30 Greatest Overweight (x) 7 | . 1 . 1 7 Average Overweight (x) . | . . . . 1 Largest Inventory Capacity 10 | 6 6 6 10 10 Average Capacity 7 | 5 6 6 7 10 Most Carried 6 | 6 6 6 6 6 Average Carried 5 | 3 5 5 5 3 Final Capacity 10 | 6 6 6 10 10 Final Carried 6 | 6 5 6 4 2 Class Distribution -------------------- 54% | Scavenger-Mutant 45% | Mutant Dominant Class ---------------- Mutant | -10/Materials Scavenger-Mutant | -10/Mines Scavenger-Mutant | -9/Materials Mutant | -8/Materials Resources | -11 -10 -10 -9 -8 ----------- Run | Scr Mat Min Mat Mat Matter Collected 699 | 272 41 168 74 144 Remotely . | . . . . . Salvage Created 921 | 22 276 56 105 462 Parts 52 | 2 15 7 6 22 Haulers Intercepted 1 | . 1 . . . Recyclers Shooed 2 | . 2 . . . Parts Field Recycled . | . . . . . Retrieved Matter . | . . . . . Parts Self-Destructed . | . . . . . Prevented . | . . . . . Kills | -11 -10 -10 -9 -8 ------- Run | Scr Mat Min Mat Mat Combat Hostiles Destroyed 19 | . 8 2 2 7 Melee 5 | . . . . 5 Guns 10 | . 5 2 2 1 Cannons 1 | . . . . 1 AOE 3 | . 3 . . . Classes Destroyed 8 | 1 6 . 1 . Builder 3 | . 1 . . 2 Tunneler 1 | 1 . . . . Hauler 1 | . 1 . . . Recycler 2 | . 1 . . 1 Operator 1 | . 1 . . . Swarmer 5 | . 5 . . . Grunt 12 | . 3 2 . 7 Sentry 2 | . . . 2 . Best Kill Streak 3 | 1 3 2 1 3 Combat Bots Only 3 | . 3 2 1 2 Max Kills in Single Turn 2 | 1 2 1 1 1 Gunslinging . | . . . . . Exploded 1 | . 1 . . . Melee 1 | . . . . 1 Uniques/NPCs Destroyed . | . . . . . Combat | -11 -10 -10 -9 -8 -------- Run | Scr Mat Min Mat Mat Damage Taken 3017 | . 651 153 390 1823 Core 837 | . 126 38 107 566 Absorbed by Shields . | . . . . . Core Remaining (%) 69 | 100 . 34 73 . Volleys Fired 65 | 2 23 10 11 19 Largest 2 | 2 2 2 2 2 Hottest 85 | 60 60 50 40 85 Shots Fired 100 | 4 43 11 16 26 Gun 87 | 4 36 10 16 21 Cannon 5 | . . . . 5 Launcher 8 | . 7 1 . . Special . | . . . . . Kinetic 66 | 2 25 10 16 13 Thermal 13 | . . . . 13 Explosive 8 | . 7 1 . . Electromagnetic 13 | 2 11 . . . Robot Hit Streak 11 | 3 11 3 3 6 Robot Miss Streak 6 | . 2 3 3 6 Penetration Max . | . . . . . Secondary Targets 2 | . 2 . . . Max Gunslinging Chain 1 | . 1 . . . Shots Hit Robots 84 | 3 29 6 9 37 Core Hits 49 | 1 24 5 4 15 Critical Hits . | . . . . . Critical Kills . | . . . . . Critical Parts Destroyed . | . . . . . Melee Attacks 25 | . . . . 25 Impact . | . . . . . Slashing . | . . . . . Piercing 25 | . . . . 25 Sneak Attacks 3 | . . . . 3 Combat Hostiles . | . . . . . Follow-up Attacks 2 | . . . . 2 Damage Inflicted 2454 | 36 1000 152 127 1139 Guns 707 | 36 254 63 127 227 Cannons 93 | . . . . 93 Explosions 835 | . 746 89 . . Melee 819 | . . . . 819 Ramming . | . . . . . Kinetic 478 | 9 139 63 127 140 Thermal 264 | . 84 . . 180 Explosive 751 | . 662 89 . . Electromagnetic 142 | 27 115 . . . Impact . | . . . . . Slashing . | . . . . . Piercing 819 | . . . . 819 Highest Corruption . | . . . . . Average Corruption . | . . . . . Corruption Purged . | . . . . . Overload Shots 3 | . . . . 3 Overflow Damage 128 | . 60 . . 68 Projectiles . | . . . . . Explosions 60 | . 60 . . . Melee 68 | . . . . 68 Knockbacks 1 | . . . . 1 Impact . | . . . . . Kinetic 1 | . . . . 1 Secondary . | . . . . . Self-Inflicted Damage 216 | . 216 . . . Shots 7 | . 7 . . . Rammed . | . . . . . Targets Rammed . | . . . . . Kicked . | . . . . . Crushed . | . . . . . Highest Temperature 72 | 20 72 2 6 71 Average Temperature 25 | 15 32 2 6 21 Received Heat Transfer 1095 | . 111 84 72 828 Siege Activations . | . . . . . Robots Corrupted . | . . . . . Combat Hostiles . | . . . . . Parts Fried . | . . . . . Impact Corruptions . | . . . . . Robots Melted . | . . . . . Combat Hostiles . | . . . . . Parts Melted 1 | . . . . 1 Heat Transferred 509 | . 150 . . 359 Parts Sabotaged . | . . . . . Parts Stolen . | . . . . . Parts Stripped . | . . . . . Power Chain Reactions 1 | . 1 . . . Missiles Intercepted . | . . . . . Alert | -11 -10 -10 -9 -8 ------- Run | Scr Mat Min Mat Mat Peak Influence 249 | 5 195 160 249 134 Average Influence 106 | 1 90 127 134 101 Maximum Alert Level 1 | . . . 1 . Low Security (%) 95 | 100 100 100 82 100 Level 1 4 | . . . 17 . Level 2 . | . . . . . Level 3 . | . . . . . Level 4 . | . . . . . Level 5 . | . . . . . High Security . | . . . . . Max Security . | . . . . . Squads Dispatched 4 | . 3 . . 1 Investigation . | . . . . . Extermination . | . . . . . Reinforcement 4 | . 3 . . 1 Assault . | . . . . . Garrison . | . . . . . Intercept . | . . . . . Construction Impeded . | . . . . . Haulers Reinforced . | . . . . . Stealth | -11 -10 -10 -9 -8 --------- Run | Scr Mat Min Mat Mat Distress Signals 5 | . 1 . 1 3 Communications Jammed . | . . . . . Distress Signals . | . . . . . Times Spotted 47 | . 14 4 9 20 Peak Tracking Total 9 | . 6 2 3 9 Tactical Retreats 7 | . 1 . 1 5 Traps | -11 -10 -10 -9 -8 ------- Run | Scr Mat Min Mat Mat Traps Triggered 1 | . . . 1 . Indirectly . | . . . . . Trap Hack Attempts . | . . . . . Triggered . | . . . . . Disarmed . | . . . . . Reprogrammed . | . . . . . Reused . | . . . . . Traps Extracted . | . . . . . Installed . | . . . . . Triggered . | . . . . . Machines | -11 -10 -10 -9 -8 ---------- Run | Scr Mat Min Mat Mat Machines Disabled 2 | . 2 . . . Max in Single Turn 1 | . 1 . . . Machines Sabotaged . | . . . . . Garrisons Compromised . | . . . . . Overloaded Fab Kills . | . . . . . Fab Network Shutdowns . | . . . . . Hacking | -11 -10 -10 -9 -8 --------- Run | Scr Mat Min Mat Mat Machines Accessed 2 | . . . 2 . Terminals 2 | . . . 2 . Fabricators . | . . . . . Repair Stations . | . . . . . Recycling Units . | . . . . . Scanalyzers . | . . . . . Garrison Access . | . . . . . Total Hacks 10 | . . . 10 . Successful 4 | . . . 4 . Failed 6 | . . . 6 . Catastrophic . | . . . . . Database Lockouts . | . . . . . Manual 4 | . . . 4 . Terminals 10 | . . . 10 . Fabricators . | . . . . . Repair Stations . | . . . . . Recycling Units . | . . . . . Scanalyzers . | . . . . . Garrison Access . | . . . . . Terminal Hacks 4 | . . . 4 . Robot Analysis 1 | . . . 1 . Level Access Points 1 | . . . 1 . Emergency Access Points 1 | . . . 1 . Zone Layout 1 | . . . 1 . Fabricator Hacks . | . . . . . Repair Station Hacks . | . . . . . Recycling Unit Hacks . | . . . . . Scanalyzer . | . . . . . Garrison Access Hacks . | . . . . . Unauthorized Hacks . | . . . . . Terminals . | . . . . . Fabricators . | . . . . . Repair Stations . | . . . . . Recycling Units . | . . . . . Scanalyzers . | . . . . . Garrison Access . | . . . . . Data Cores Recovered 1 | . . . 1 . Used . | . . . . . Hacking Detections 2 | . . . 2 . Full Trace Events . | . . . . . Feedback Events . | . . . . . Feedback Blocked . | . . . . . Robot Schematics Acquired . | . . . . . Robots Built . | . . . . . Matter . | . . . . . Time . | . . . . . Total Robot Build Rating . | . . . . . Part Schematics Acquired . | . . . . . Parts Built . | . . . . . Matter . | . . . . . Time . | . . . . . Total Part Build Rating . | . . . . . Parts Repaired . | . . . . . Time . | . . . . . Parts Recycled . | . . . . . Recycled Matter . | . . . . . Retrieved Matter . | . . . . . Retrieved Components . | . . . . . Parts Scanalyzed . | . . . . . Part Schematics Acquired . | . . . . . Parts Damaged . | . . . . . Bothacking | -11 -10 -10 -9 -8 ------------ Run | Scr Mat Min Mat Mat Used RIF Installer . | . . . . . Robots Hacked . | . . . . . Non-combat . | . . . . . Combat . | . . . . . Robot Hacks Applied . | . . . . . Relay Couplers Released . | . . . . . Robots Rewired . | . . . . . Allies Hacked . | . . . . . Hacks Repelled . | . . . . . Allies | -11 -10 -10 -9 -8 -------- Run | Scr Mat Min Mat Mat Total Allies 6 | . . 6 . . Largest Group 6 | . . 6 3 . Highest-Rated Group 116 | . . 116 55 . Highest-Rated Ally 31 | . . 31 31 . Total Orders . | . . . . . Ally Attacks 25 | . . 5 20 . Total Damage 330 | . . 91 239 . Kills 8 | . . 2 6 . Allies Corrupted . | . . . . . Allies Melted . | . . . . . Intel | -11 -10 -10 -9 -8 ------- Run | Scr Mat Min Mat Mat Robot Analysis Total 1 | . . . 1 . Derelict Logs Recovered 1 | . . 1 . . Drone Launches . | . . . . . Drone Recoveries . | . . . . . Exploration | -11 -10 -10 -9 -8 ------------- Run | Scr Mat Min Mat Mat Turns Passed 1191 | 98 220 319 292 262 Spaces Moved 677 | 65 102 217 204 89 Core 14 | 7 . . . 7 Treads . | . . . . . Legs 643 | 58 102 217 204 62 Wheels 15 | . . . . 15 Hover 5 | . . . . 5 Flight . | . . . . . Fastest Speed 50 | 50 120 120 120 90 Average Speed 123 | 112 122 120 121 147 Slowest Speed 400 | 120 150 120 150 400 Overloaded Moves . | . . . . . Propulsion Burnouts . | . . . . . Robots Hopped . | . . . . . Cave-ins Triggered . | . . . . . Exploration Rate (%) 22 | 5 23 46 26 10 Regions Visited 4 Branch Regions 1 Pre-discovered Areas . | . . . . . Known Exits Taken 1 | . . . 1 . Unknown Exits Taken 3 | 1 1 1 . . Scrap Searched 2 | . . 2 . . Spaces Dug 3 | . . . . 3 Terrain Destroyed 40 | . 30 7 . 3 Melee 2 | . . . . 2 Projectile 1 | . . . . 1 AOE 37 | . 30 7 . . Actions | -11 -10 -10 -9 -8 --------- Run | Scr Mat Min Mat Mat Total 905 | 86 157 269 234 159 Wait 54 | . 25 21 7 1 Move 673 | 64 101 216 203 89 Hop . | . . . . . Pick Up 44 | 13 3 11 5 12 Fast Attach . | . . . . . Attach 33 | 7 3 4 5 14 Detach . | . . . . . Swap 4 | . 1 1 1 1 Drop 9 | . 1 6 2 . Fire 65 | 2 23 10 11 19 Melee 23 | . . . . 23 Ram . | . . . . . Kick . | . . . . . Crush . | . . . . . Escape Stasis . | . . . . . Rewire . | . . . . . Trap . | . . . . . Miscellaneous . | . . . . . Route ------- -11/Scrapyard -10/Materials -10/Mines -9/Materials (discovered 4 exits: *Mat x3 / [*Sto]) -8/Materials History --------- Turn | Location | Event 4 | -11/Scrapyard | Discovered new exit (range 16) 99 | -11/Scrapyard | Entered Materials 201 | -10/Materials | Discovered new exit (range 9) 314 | -10/Materials | Build established: Mutant 317 | -10/Materials | Core integrity fell below 50% 319 | -10/Materials | Entered Mines 356 | -10/Mines | Lost 4 parts (1p2n1w) 424 | -10/Mines | Assisted by bots powering up and referring to "LRC-V3" 503 | -10/Mines | Received a Mining Laser from a helpful Derelict 583 | -10/Mines | Learned Materials garrison access intel 623 | -10/Mines | Discovered new exit (range 13) 638 | -10/Mines | Entered Materials 638 | -9/Materials | Accompanied by 3 allies 638 | -9/Materials | Evolved 2 slots: Propulsion x1, Utility x1 660 | -9/Materials | Build established: Scavenger-Mutant 773 | -9/Materials | Identified exit to Materials 881 | -9/Materials | Discovered new exit (range 13) 930 | -9/Materials | Entered another Materials area 930 | -8/Materials | Evolved 2 slots: Propulsion x1, Utility x1 931 | -8/Materials | Loaded intel: 1 garrison access location 1068 | -8/Materials | Lost 10 parts (2p5n1u2w) 1101 | -8/Materials | Core integrity fell below 50% 1140 | -8/Materials | Core integrity fell below 20% 1192 | -8/Materials | Destroyed by H-55 Commando with Gauss Rifle Last Messages --------------- 01140_ Slug penetrates Wall. 01140_ Imp. Heat Sink melted. 01140_ G-47 Trooper destroyed. 01143_ Slug penetrates Wall. 01146_ Acquired Aluminum Leg. 01150_ Acquired 10 matter. 01151_ Acquired Lgt. Nuclear Core. 01154_ K-01 Serf collects debris. 01157_ Spear destroyed. 01164_ K-01 Serf collects debris. 01169_ G-47 Trooper destroyed. 01170_ K-01 Serf collects debris. 01172_ Acquired 10 matter. 01174_ K-01 Serf collects debris. 01176_ Slug penetrates Wall. 01176_ Utility Shielding destroyed. 01178_ G-47 Trooper destroyed. 01179_ Slug penetrates Wall. 01179_ Lgt. Nuclear Core destroyed. 01185_ Penetrated by Slug. Map ----- +----------------------------------------------------+ | ???????????????#???????"?????#??#????????????????? | | ???????????????????????????? #???????????????????? | | ???????????????????????#???? #????#??????????????? | | ?????????????????????#######/###?????????????????? | | ??????????????######## #?????????????????? | | ?? ???????# # #?????????????????? | | ?? ##### # """ #?????????????????? | | ?? # """""#?????????????????? | | ?? + """""#?????????????????? | | ??????????##### # = """"#?????????????????? | | ??????????????# # ![%! #?????????????????? | | ??????????????### #### !*%% #?????????????????? | | ????????????#####+#################???? ?????????? | | ??????? ????# #?# #???#???????????? | | ????????????# #?# #???????????????? | | ????????????# #?# !%""" #???????????????? | | ????????????# !###%!%""""" #???????????????? | | ??????????#?# =!! #?# !=""""" #???????????????? | | ????????????# =!! ! #?# """" #???????????????? | | ?????#??????# !!! #?# """ #???????????????? | | ???????????## #?# % #???#???????????? | | ????????????# #?#####+#####???????????????? | | ????????????#####+########! #?????????????????? | | ?? ????????##### #?#???????????????? | | ???????????#[[ t #?????????????????? | | ???????????# [ h@ * #?????????????????? | | ?? ????????#// w ####### ![! #?????????????????? | | ???????????# #??######+####????????????????? | | ????#??????# = #??# %%=! #????????????????? | | ????????#??#== #??# #????????????????? | | ???????????#########??# + ?????????????? | | ?? ????????????????#??# ! ]] # ??????????? | | ?????????#????#???????# ]= #?######?????????? | | ????????????#?????????# #????????????????? | | ??????????????????????# #????????????????? | | ??????????????????????# #????????????????? | | ?????????????????#????###########????????????????? | | ????????#??????#????????#????????????????????????? | | ????????#????????#???????????????????????????????? | | ??????????#??????????????????????????????????????? | | ?????????????????????????????????????????????????? | | ?????????#????????#??????????????????????????????? | | ?????????????#???????????????????????????????????? | | ?????????????????????????????????????????????????? | | ?????????????????????????????????????????????????? | | | | | | | | | | | +----------------------------------------------------+ Best States ------------- Heat Dissipation 31 Energy Generation 14 Energy Capacity 250 Matter Stores 300 Matter Capacity 300 Sight Range 18 Terrain Scan Range 16 Terrain Scan Density 10 Utility Shielding 33 Evasion (%) 40 Item Schematics ----------------- None Robot Schematics ------------------ None Fabricated ------------ Nothing Alien Tech Used ----------------- None Achievements -------------- None Challenges ------------ None Game ------ Seed ParticleArcSabre Manual? 0 Play Time 00:17:12 Cumulative 30.9 hours Start 2020.02.04 @ 13:38:46 End 2020.02.04 @ 13:52:13 Sessions 1 Manual Loads 0 Difficulty Rogue Special Mode None Game No. 77 Rogue 77 Adventurer 0 Explorer 0 Win Type - Total 0 Types 0/0/0/0/0/0/0 Lore% 19 Gallery% 36 Achievement% 23 Wizard Run 0 Options --------- ASCII 0 Keyboard 0 Movement Numpad Keybinds 0 Fullscreen 1 Font 18/SmallcapsGlow Map View 76x50 Tactical HUD 1 Map Filters NONE Filters NONE Steam 1 RUN: 3cecf8a1-3343-45d8-9340-eb31b5f53938